bitfinex/quotes_SOLUSD_20241111
["timestamp","ask_amount","ask_price","bid_price","bid_amount"]
[1731362777666,23.776884,218.96,218.83,21.92357758]
[1731362777961,23.776884,218.96,218.87,21.92357758]
[1731362778169,6.5618,218.97,218.89,21.92357758]
[1731362778331,6.5618,218.97,218.91,21.92357758]
[1731362778733,6.5618,218.97,218.89,21.92357758]
[1731362778952,11.31541375,219.04,218.89,21.92357758]
[1731362779258,23.776884,219.03,218.89,21.92357758]
[1731362779461,23.776884,219.03,218.88,20.0]
[1731362780354,23.776884,219.03,218.87,21.92357758]
[1731362780557,23.776884,219.03,218.86,20.0]
[1731362781249,23.776884,219.03,218.87,21.92357758]
[1731362781446,23.776884,219.03,218.88,20.0]
[1731362782961,0.1,219.0,218.83,21.92357758]
[1731362783147,0.2,219.0,218.81,21.92357758]
[1731362783344,23.776884,218.98,218.79,21.92357758]
[1731362784242,23.776884,218.98,218.8,20.0]
[1731362785166,23.876884,218.98,218.8,20.0]
[1731362785546,23.776884,218.98,218.8,20.0]
[1731362786649,23.776884,218.98,218.81,21.92357758]
[1731362786961,4.75087387,218.97,218.81,20.0]
[1731362787165,23.776884,218.96,218.82,21.92357758]
[1731362787667,23.776884,218.96,218.79,20.0]
[1731362788355,23.776884,218.96,218.81,20.0]
[1731362791063,23.776884,218.96,218.82,21.92357758]
[1731362791273,23.776884,218.96,218.81,20.0]
[1731362791965,23.776884,218.96,218.8,21.92357758]
[1731362792169,23.776884,218.96,218.79,20.0]
[1731362792864,22.56952567,218.96,218.8,20.0]
[1731362793378,22.56952567,218.96,218.66,0.1]
[1731362793666,21.8356,218.92,218.71,13.75746915]
[1731362794470,27.95448858,218.92,218.71,13.75746915]
[1731362794660,21.8356,218.92,218.72,20.0]
[1731362794974,23.776884,218.91,218.74,20.0]
[1731362795470,23.776884,218.91,218.73,13.75746915]
[1731362795646,23.776884,218.91,218.76,13.75746915]
[1731362795970,23.776884,218.91,218.77,20.0]
[1731362796659,23.776884,218.91,218.8,13.75746915]
[1731362796866,23.776884,218.91,218.77,20.0]
[1731362797373,23.776884,218.89,218.75,20.0]
[1731362798048,23.776884,218.89,218.71,20.0]
[1731362798248,23.776884,218.89,218.74,20.0]
[1731362798868,23.776884,218.89,218.76,20.0]
[1731362799245,23.776884,218.89,218.64,23.876884]
[1731362799450,23.776884,218.89,218.71,22.02854173]
[1731362800357,23.776884,218.89,218.73,22.02854173]
[1731362800873,23.776884,218.89,218.75,22.02854173]
[1731362801057,23.776884,218.89,218.78,20.0]
[1731362802657,23.776884,218.89,218.76,20.0]
[1731362803769,23.776884,218.89,218.77,22.02854173]
[1731362804348,4.75158704,218.9,218.77,22.02854173]
[1731362805769,23.776884,218.89,218.77,22.02854173]
[1731362805961,23.776884,218.89,218.79,22.02854173]
[1731362806156,0.57532139,218.91,218.83,22.02854173]
[1731362807454,0.57532139,218.91,218.84,20.0]
[1731362807668,0.57532139,218.91,218.86,22.02854173]
[1731362807877,0.57532139,218.91,218.88,22.02854173]
[1731362808075,0.57532139,218.91,218.9,42.02854173]
[1731362809073,0.57532139,218.91,218.85,23.876884]
[1731362809074,0.57532139,218.91,218.86,20.0]
[1731362809281,0.57532139,218.91,218.85,23.876884]
[1731362809282,0.57532139,218.91,218.9,42.02854173]
[1731362810252,0.57532139,218.91,218.79,0.1]
[1731362810472,0.57532139,218.91,218.88,22.02854173]
[1731362810856,0.57532139,218.91,218.9,22.02854173]
[1731362811554,0.57532139,218.91,218.9,20.0]
[1731362812584,15.1165,219.02,218.91,20.0]
[1731362812875,15.1165,219.02,218.92,22.02854173]
[1731362813173,15.1165,219.02,218.93,20.0]
[1731362814284,15.1165,219.02,218.85,20.1]
[1731362814459,15.1165,219.02,218.93,22.02854173]
[1731362814971,15.1165,219.02,218.91,22.02854173]
[1731362815174,15.1165,219.02,218.85,20.0]
[1731362815175,15.1165,219.02,218.93,22.02854173]
[1731362815555,15.1165,219.02,218.95,22.02854173]
[1731362815778,15.1165,219.02,218.96,20.0]
[1731362815979,15.1165,219.02,218.96,10.63864143]
[1731362816284,15.1165,219.02,218.95,22.02854173]
[1731362817378,6.5983,219.03,218.97,22.02854173]
[1731362818784,16.3877,219.07,218.98,33.73373467]
[1731362819273,6.4362,219.08,219.01,20.0]
[1731362820364,16.2798,219.12,219.03,20.0]
[1731362820675,25.12676771,219.12,219.04,13.73373467]
[1731362820984,16.2798,219.12,219.05,20.0]
[1731362821171,11.3573647,219.18,219.06,13.73373467]
[1731362821374,3.3497796,219.17,219.09,13.73373467]
[1731362821574,3.3497796,219.16,219.1,13.73373467]
[1731362821753,24.668313,219.24,219.12,13.73373467]
[1731362822065,3.34836924,219.23,219.13,13.73373467]
[1731362822260,3.34836924,219.22,219.13,13.73373467]
[1731362822465,3.34836924,219.21,219.08,20.0]
[1731362822757,6.4293,219.24,219.08,20.0]
[1731362822758,3.34836924,219.2,219.08,20.0]
[1731362822960,3.34836924,219.19,219.1,20.0]
[1731362823171,3.34836924,219.18,219.1,10.13121795]
[1731362823364,3.34836924,219.17,219.1,10.13121795]
[1731362823577,23.776884,219.23,219.09,21.9551953]
[1731362823894,23.776884,219.21,219.09,21.9551953]
[1731362824182,3.34150136,219.2,219.11,21.9551953]
[1731362824381,3.34150136,219.19,219.11,21.9551953]
[1731362824578,3.34150136,219.18,219.05,23.876884]
[1731362824756,6.4293,219.24,219.14,21.9551953]
[1731362825084,3.33939768,219.23,219.14,21.9551953]
[1731362825386,3.33939768,219.22,219.14,21.9551953]
[1731362825587,3.33939768,219.21,219.14,21.9551953]
[1731362825768,3.33939768,219.2,219.14,21.9551953]
[1731362825964,6.4293,219.24,219.07,6.6566]
[1731362826166,13.6178526,219.23,219.01,6.5511]
[1731362826368,3.33618359,219.22,219.05,21.9551953]
[1731362826587,3.33618359,219.21,219.05,21.9551953]
[1731362826777,23.776884,219.19,219.05,21.9551953]
[1731362827084,23.776884,219.17,219.03,21.9551953]
[1731362827290,23.776884,219.15,219.03,21.9551953]
[1731362827462,23.776884,219.17,218.96,6.5511]
[1731362827664,22.3311,219.16,219.05,21.9551953]
[1731362828083,22.3311,219.16,219.0,23.776884]
[1731362828291,22.3311,219.16,219.06,21.9551953]
[1731362828689,22.3311,219.16,219.04,21.9551953]
[1731362829192,22.3311,219.16,219.05,20.0]
[1731362829486,22.3311,219.16,219.0,21.9551953]
[1731362829674,17.7989,219.16,219.0,21.9551953]
[1731362829883,17.2153,219.16,219.0,21.9551953]
[1731362830190,13.849,219.16,219.0,21.9551953]
[1731362830791,13.849,219.16,219.01,20.242684]
[1731362830988,3.33228849,219.15,219.01,20.242684]
[1731362831172,3.33228849,219.14,219.01,20.242684]
[1731362831365,13.849,219.16,219.01,20.242684]
[1731362831584,3.33369537,219.15,219.01,20.242684]
[1731362831771,3.33369537,219.14,219.01,20.242684]
[1731362832093,13.849,219.16,219.01,20.242684]
[1731362832299,3.33446448,219.15,219.01,20.242684]
[1731362832594,3.33446448,219.14,219.01,20.242684]
[1731362832788,4.73868339,219.15,219.01,20.242684]
[1731362833089,13.849,219.16,219.02,20.0]
[1731362833280,13.849,219.16,219.07,21.9551953]
[1731362833466,13.849,219.16,219.06,23.776884]
[1731362833678,13.849,219.16,219.06,45.7320793]
[1731362834572,13.849,219.16,219.08,23.776884]
[1731362835704,13.349,219.16,219.08,23.776884]
[1731362836296,13.349,219.16,219.02,21.9551953]
[1731362836595,13.349,219.16,219.03,43.776884]
[1731362837089,13.349,219.16,219.02,21.9551953]
[1731362837491,13.349,219.16,218.94,15.1147]
[1731362837695,13.349,219.16,219.01,21.9551953]
[1731362837869,13.349,219.16,218.94,15.1147]
[1731362837870,13.349,219.16,218.99,21.9551953]
[1731362838070,13.349,219.16,219.02,20.0]
[1731362838270,13.349,219.16,219.09,23.776884]
[1731362838885,13.349,219.16,219.09,13.75533695]
[1731362839088,6.2176,219.16,219.1,41.9551953]
[1731362839270,15.3603,219.22,219.1,41.9551953]
[1731362839271,6.5392,219.21,219.1,41.9551953]
[1731362839886,6.5392,219.21,219.03,20.0]
[1731362840091,6.5392,219.21,219.1,20.0]
[1731362840694,6.5392,219.21,219.11,20.0]
[1731362841074,6.5392,219.21,219.08,21.9551953]
[1731362841274,6.5392,219.21,219.03,23.776884]
[1731362841492,6.5392,219.21,219.07,21.9551953]
[1731362842475,6.5392,219.21,219.09,21.9551953]
[1731362842681,6.5392,219.21,219.03,23.776884]
[1731362842992,3.33736192,219.2,219.09,20.0]
[1731362843186,6.5392,219.21,219.09,20.0]
[1731362843388,3.3389842,219.2,219.09,20.0]
[1731362843593,6.5392,219.21,219.07,21.9551953]
[1731362843892,3.34085967,219.2,219.08,41.9551953]
[1731362844080,6.5392,219.21,219.08,41.9551953]
[1731362844397,3.34071706,219.2,219.08,41.9551953]
[1731362844582,6.5392,219.21,219.08,41.9551953]
[1731362844779,3.34272253,219.2,219.04,20.0]
[1731362844977,6.5392,219.21,219.09,20.0]
[1731362845289,3.3427808,219.2,219.09,20.0]
[1731362845493,3.3427808,219.19,219.09,21.9551953]
[1731362845672,6.5392,219.21,219.09,21.9551953]
[1731362845998,3.34351599,219.2,219.08,21.9551953]
[1731362846192,3.34351599,219.19,219.08,21.9551953]
[1731362846400,6.5392,219.21,219.08,21.9551953]
[1731362846599,3.34350304,219.2,219.08,21.9551953]
[1731362846901,3.34350304,219.19,219.08,21.9551953]
[1731362847086,6.5392,219.21,219.08,21.9551953]
[1731362847281,3.34370093,219.2,219.1,20.0]
[1731362847595,3.34370093,219.19,219.11,23.776884]
[1731362847900,6.5392,219.21,219.11,23.776884]
[1731362848093,3.3455687,219.2,219.09,20.0]
[1731362848392,3.3455687,219.19,219.1,21.9551953]
[1731362848607,3.3455687,219.2,219.11,20.0]
[1731362848777,6.5392,219.21,219.11,20.0]
[1731362848982,3.34695547,219.2,219.11,20.0]
[1731362849203,6.5392,219.21,219.11,20.0]
[1731362849501,3.3489848,219.2,219.05,20.0]
[1731362849711,6.5392,219.21,219.12,20.0]
[1731362849880,3.34896094,219.2,219.12,20.0]
[1731362850202,3.34896094,219.19,219.12,20.0]
[1731362850501,6.5392,219.21,219.13,37.49617841]
[1731362850738,3.34893017,219.2,219.13,37.49617841]
[1731362850885,6.5392,219.21,219.13,23.776884]
[1731362851196,3.34831951,219.2,219.14,20.0]
[1731362851401,3.34831951,219.19,219.14,20.0]
[1731362851585,3.34831951,219.2,219.15,37.49617841]
[1731362851905,15.3603,219.22,219.16,20.0]
[1731362852108,3.34968384,219.21,219.16,20.0]
[1731362852282,15.0324,219.27,219.2,37.49617841]
[1731362852483,3.34972693,219.26,219.22,23.776884]
[1731362852699,3.34972693,219.25,219.24,43.776884]
[1731362852900,6.0466,219.37,219.28,23.776884]
[1731362853077,4.73737556,219.41,219.26,23.776884]
[1731362853078,15.3846,219.36,219.3,33.71929441]
[1731362853286,15.0324,219.42,219.3,43.776884]
[1731362853488,15.0324,219.42,219.3,57.49617841]
[1731362853713,15.3846,219.36,219.33,0.1]
[1731362854003,4.7361206,219.54,219.39,23.776884]
[1731362854207,15.3846,219.5,219.49,13.71929441]
[1731362854382,6.0466,219.59,219.49,33.71929441]
[1731362854579,3.34384637,219.58,219.52,13.71929441]
[1731362854800,15.3846,219.53,219.5,21.8702846]
[1731362855001,15.3846,219.53,219.41,43.776884]
[1731362855202,15.3846,219.53,219.41,20.0]
[1731362855907,15.3846,219.53,219.31,0.1]
[1731362855908,0.1,219.51,219.31,21.8702846]
[1731362856079,3.33583849,219.5,219.32,21.8702846]
[1731362856283,3.33583849,219.49,219.31,21.8702846]
[1731362856520,3.33319688,219.48,219.3,21.8702846]
[1731362856808,45.055884,219.46,219.18,6.1966]
[1731362857002,23.976884,219.44,219.25,21.8702846]
[1731362857201,23.776884,219.42,219.25,21.8702846]
[1731362857398,23.776884,219.4,219.25,21.8702846]
[1731362857592,23.776884,219.42,219.25,21.8702846]
[1731362857788,23.776884,219.4,219.25,21.8702846]
[1731362857997,23.776884,219.4,219.23,21.8702846]
[1731362858397,23.776884,219.38,219.23,21.8702846]
[1731362858912,3.33022409,219.37,219.23,21.8702846]
[1731362859090,23.776884,219.38,219.23,21.8702846]
[1731362859484,3.33025023,219.37,219.21,21.8702846]
[1731362859691,6.66056399,219.37,219.23,20.0]
[1731362859887,3.33025023,219.37,219.23,21.8702846]
[1731362860085,3.33025023,219.37,219.24,20.0]
[1731362861213,3.33025023,219.37,219.23,21.8702846]
[1731362861524,3.33025023,219.37,219.23,20.0]
[1731362861810,23.776884,219.38,219.23,20.0]
[1731362862309,3.33012295,219.37,219.23,20.0]
[1731362862519,23.776884,219.38,219.23,20.0]
[1731362862691,23.776884,219.38,219.22,21.8702846]
[1731362863014,3.33101182,219.37,219.23,20.0]
[1731362863227,23.776884,219.38,219.23,20.0]
[1731362863408,3.33013366,219.37,219.23,20.0]
[1731362863595,23.776884,219.38,219.23,20.0]
[1731362863795,3.32979546,219.37,219.23,20.0]
[1731362863995,23.776884,219.38,219.24,21.8702846]
[1731362864298,3.32915851,219.37,219.24,21.8702846]
[1731362864512,23.776884,219.38,219.24,21.8702846]
[1731362864713,3.32949421,219.37,219.24,21.8702846]
[1731362865013,23.776884,219.38,219.24,21.8702846]
[1731362865201,23.776884,219.42,219.26,21.8702846]
[1731362865408,18.225745,219.36,219.26,21.8702846]
[1731362866811,18.225745,219.36,219.27,20.0]
[1731362867323,18.225745,219.36,219.29,20.0]
[1731362868718,18.225745,219.36,219.27,43.776884]
[1731362868923,18.225745,219.36,219.27,65.6471686]
[1731362869319,18.225745,219.36,219.22,21.8702846]
[1731362869617,23.776884,219.34,219.16,21.8702846]
[1731362869823,16.5926,219.33,219.16,21.8702846]
[1731362870198,0.1,219.27,219.15,21.8702846]
[1731362870717,0.1,219.29,219.15,21.8702846]
[1731362870914,0.1,219.29,219.16,20.0]
[1731362871318,0.1,219.25,219.13,21.8702846]
[1731362871524,1.01238594,219.25,219.13,21.8702846]
[1731362872016,0.91238594,219.25,219.13,21.8702846]
[1731362872209,0.2,219.27,219.13,21.8702846]
[1731362872717,0.2,219.27,219.14,43.776884]
[1731362873807,0.91238594,219.32,219.14,43.776884]
[1731362873808,0.1,219.29,219.15,21.8702846]
[1731362874005,1.01238594,219.29,219.16,43.776884]
[1731362874201,1.11238594,219.29,219.16,43.776884]
[1731362874423,0.1,219.25,219.16,43.776884]
[1731362875399,0.2,219.2,219.08,21.8702846]
[1731362875599,1.11238594,219.2,219.08,21.8702846]
[1731362876832,1.11238594,219.2,219.04,21.8702846]
[1731362876833,0.1,219.17,219.04,21.8702846]
[1731362877128,0.1,219.14,218.95,6.4502]
[1731362877304,0.1,219.14,219.01,21.8702846]
[1731362877500,0.91238594,219.15,219.03,21.8702846]
[1731362877725,0.2,219.16,219.03,21.8702846]
[1731362878035,1.11238594,219.16,219.03,21.8702846]
[1731362878203,0.2,219.16,219.04,23.776884]
[1731362878405,1.01238594,219.16,219.03,23.776884]
[1731362878604,0.1,219.14,219.03,23.776884]
[1731362878822,1.01238594,219.14,219.03,23.776884]
[1731362879127,0.91238594,219.14,219.05,23.776884]
[1731362879303,0.2,219.16,219.06,20.0]
[1731362879622,1.11238594,219.16,219.06,20.0]
[1731362879807,0.1,219.12,219.03,23.776884]
[1731362880016,0.1,219.12,219.04,20.0]
[1731362880402,0.1,219.07,219.04,20.0]
[1731362880607,0.1,219.05,218.94,21.8702846]
[1731362880922,0.91238594,219.1,218.98,21.8702846]
[1731362881425,0.1,219.09,218.96,21.8702846]
[1731362881605,0.1,219.07,218.94,21.8702846]
[1731362881808,1.01238594,219.07,218.94,21.8702846]
[1731362882022,1.01238594,219.07,218.95,20.0]
[1731362882604,1.01238594,219.07,218.97,20.0]
[1731362883205,1.01238594,219.07,218.96,21.8702846]
[1731362883206,0.1,219.06,218.94,21.8702846]
[1731362883521,6.7649,218.99,218.85,21.8702846]
[1731362883729,0.1,218.97,218.85,21.8702846]
[1731362883905,0.2,218.97,218.83,21.8702846]
[1731362884229,0.91238594,218.96,218.74,22.2449]
[1731362884436,0.1,218.95,218.82,21.8702846]
[1731362885302,0.1,218.95,218.8,21.8702846]
[1731362885303,1.11238594,218.95,218.8,21.8702846]
[1731362885505,0.1,218.93,218.8,21.8702846]
[1731362886028,0.1,218.93,218.82,21.8702846]
[1731362886403,0.1,218.93,218.74,22.2449]
[1731362886404,1.01238594,218.95,218.84,21.8702846]
[1731362886726,0.1,218.95,218.84,21.8702846]
[1731362886923,1.01238594,218.95,218.84,21.8702846]
[1731362887312,0.91238594,218.95,218.85,23.776884]
[1731362887627,0.1,218.92,218.83,20.0]
[1731362887828,1.01238594,218.92,218.83,20.0]
[1731362888259,0.91238594,218.92,218.82,20.0]
[1731362888526,0.1,218.92,218.82,20.0]
[1731362888704,0.1,218.91,218.82,20.0]
[1731362888906,0.1,218.91,218.8,20.0]
[1731362889326,0.91238594,218.92,218.8,20.0]
[1731362889529,0.91238594,218.92,218.81,21.8702846]
[1731362889735,1.11238594,218.95,218.82,20.0]
[1731362890234,0.1,218.93,218.82,20.0]
[1731362890412,0.91238594,218.93,218.82,20.0]
[1731362890829,0.91238594,218.95,218.83,45.6471686]
[1731362891036,0.91238594,218.95,218.84,20.0]
[1731362891212,0.91238594,218.95,218.85,45.6471686]
[1731362891523,1.01238594,218.97,218.85,45.6471686]
[1731362892230,1.01238594,218.97,218.86,20.0]
[1731362892406,0.1,218.93,218.68,27.19514446]
[1731362892606,0.1,218.92,218.83,20.0]
[1731362892838,1.01238594,218.92,218.61,20.0]
[1731362893040,1.01238594,218.92,218.52,1.825936]
[1731362893041,0.91238594,218.92,218.81,21.8702846]
[1731362893210,0.1,218.93,218.81,21.8702846]
[1731362893527,1.24215103,218.93,218.81,21.8702846]
[1731362893714,0.1,218.9,218.63,20.0]
[1731362894031,0.1,218.9,218.8,21.8702846]
[1731362894234,1.14222268,218.91,218.8,21.8702846]
[1731362894529,6.1728,218.92,218.82,21.8702846]
[1731362895016,6.1728,218.92,218.84,21.8702846]
[1731362895344,1.14209209,218.91,218.82,20.0]
[1731362895507,6.1728,218.92,218.85,21.8702846]
[1731362895704,6.1728,218.92,218.83,21.8702846]
[1731362896624,6.1728,218.92,218.83,23.776884]
[1731362897014,6.1728,218.92,218.82,23.776884]
[1731362897533,6.1728,218.92,218.83,21.8702846]
[1731362897906,6.1728,218.92,218.85,21.8702846]
[1731362898111,15.6344,218.98,218.92,23.776884]
[1731362898326,6.0928,219.0,218.96,21.8702846]
[1731362898632,6.0928,219.0,218.97,23.776884]
[1731362900017,15.2206,219.03,218.97,23.776884]
[1731362900411,0.67644169,219.07,218.97,23.776884]
[1731362900412,0.57644169,219.07,219.02,21.8702846]
[1731362900631,6.3809,219.11,219.06,21.8702846]
[1731362900835,15.1662,219.16,219.07,23.776884]
[1731362901134,15.1662,219.16,219.11,21.8702846]
[1731362901810,6.3809,219.17,219.13,21.8702846]
[1731362902138,6.3809,219.24,219.15,21.8702846]
[1731362902430,0.1,219.23,219.14,23.776884]
[1731362902945,0.1,219.19,219.1,20.0]
[1731362903116,1.24073168,219.19,219.1,20.0]
[1731362903527,0.1,219.19,219.1,20.0]
[1731362903728,1.24073286,219.19,219.1,20.0]
[1731362904234,0.1,219.17,219.08,20.0]
[1731362904415,1.24089154,219.17,219.08,20.0]
[1731362905239,0.1,219.16,219.05,21.8702846]
[1731362905421,0.1,219.15,219.05,21.8702846]
[1731362905732,0.1,219.15,219.04,20.0]
[1731362906032,1.14096814,219.23,219.05,21.8702846]
[1731362906033,0.1,219.17,219.05,21.8702846]
[1731362906232,0.1,219.15,219.05,21.8702846]
[1731362906421,0.2,219.17,219.05,21.8702846]
[1731362906632,0.2,219.19,219.07,21.8702846]
[1731362906944,0.2,219.21,219.09,21.8702846]
[1731362907339,0.2,219.21,219.11,21.8702846]
[1731362907539,0.1,219.21,219.12,23.776884]
[1731362907846,1.34096814,219.23,219.12,23.776884]
[1731362908045,1.14096814,219.23,219.15,21.8702846]
[1731362908253,6.3809,219.24,219.18,21.8702846]
[1731362908428,0.2,219.1,218.85,21.5796]
[1731362908746,0.2,219.12,218.97,21.8702846]
[1731362908922,0.1,219.12,218.99,21.8702846]
[1731362909341,0.1,219.11,218.96,21.8702846]
[1731362909646,1.2411491,219.12,218.96,21.8702846]
[1731362910017,0.1,219.11,218.97,20.0]
[1731362910219,0.1,219.07,218.92,21.8702846]
[1731362910523,0.1,219.11,218.96,21.8702846]
[1731362910739,1.14123176,219.11,218.96,21.8702846]
[1731362910934,0.1,219.12,218.98,21.8702846]
[1731362911245,0.1,219.12,219.0,21.8702846]
[1731362911447,0.1,219.12,219.01,43.776884]
[1731362913354,0.1,219.15,219.01,43.776884]
[1731362913930,0.1,219.13,219.01,43.776884]
[1731362914128,0.1,219.14,219.01,43.776884]
[1731362914435,0.2,219.11,219.01,20.0]
[1731362914638,6.1395,219.1,218.96,20.0]
[1731362915432,1.24112157,219.09,218.96,20.0]
[1731362915729,0.1,219.08,218.94,20.0]
[1731362916435,0.2,219.08,218.94,20.0]
[1731362916831,0.2,219.08,218.95,21.8702846]
[1731362917255,0.2,219.08,218.97,23.776884]
[1731362917735,0.2,219.08,218.96,20.0]
[1731362917736,0.2,219.08,219.0,20.0]
[1731362918345,0.2,219.08,218.98,23.776884]
[1731362918552,0.1,219.08,218.99,20.0]
[1731362919460,7.28062157,219.09,218.99,20.0]
[1731362919461,0.1,219.07,218.99,20.0]
[1731362919639,7.28062157,219.09,218.99,20.0]
[1731362919842,0.1,219.08,218.99,20.0]
[1731362920049,7.28062157,219.09,218.99,20.0]
[1731362920254,6.1395,219.1,219.01,20.0]
[1731362920453,6.1395,219.1,219.02,23.776884]
[1731362920767,6.1395,219.1,219.03,20.0]
[1731362921255,6.6008,219.15,219.06,23.776884]
[1731362921458,6.6008,219.15,219.05,41.8702846]
[1731362921459,6.6008,219.15,219.08,23.776884]
[1731362922253,6.6008,219.15,219.1,23.776884]
[1731362922460,16.3763,219.18,219.1,23.776884]
[1731362922754,6.6008,219.2,219.1,23.776884]
[1731362924659,6.6008,219.2,219.12,23.776884]
[1731362925857,6.6008,219.2,219.13,20.0]
[1731362926066,6.6008,219.2,219.14,23.776884]
[1731362926367,6.6008,219.2,219.16,23.776884]
[1731362926530,6.6008,219.2,219.15,20.0]
[1731362926735,6.6008,219.2,219.13,20.0]
[1731362927041,6.7008,219.2,219.06,20.0]
[1731362927239,0.1,219.19,219.06,20.0]
[1731362927644,0.1,219.19,219.08,20.0]
[1731362927957,6.6008,219.2,219.08,20.0]
[1731362928254,0.2,219.19,219.08,20.0]
[1731362928566,0.2,219.19,218.98,24.27864911]
[1731362928567,0.1,219.14,219.03,21.8702846]
[1731362929236,0.1,219.14,219.01,21.8702846]
[1731362929237,0.1,219.13,219.01,21.8702846]
[1731362929442,0.1,219.12,219.03,21.8702846]
[1731362930143,0.1,219.14,219.04,20.0]
[1731362930539,0.1,219.14,219.04,23.776884]
[1731362931354,0.1,219.12,219.02,23.776884]
[1731362931770,0.1,219.12,219.05,20.0]
[1731362932662,0.1,219.12,219.04,20.0]
[1731362932860,0.1,219.13,219.05,23.776884]
[1731362933044,0.1,219.12,219.05,23.776884]
[1731362934352,21.3983,219.11,219.05,23.776884]
[1731362934551,0.1,219.1,218.99,21.8702846]
[1731362934750,0.1,219.08,218.99,21.8702846]
[1731362934955,0.2,219.1,218.99,21.8702846]
[1731362935763,0.1,219.1,219.0,43.776884]
[1731362936566,21.3983,219.11,219.0,43.776884]
[1731362937041,0.1,219.1,219.0,43.776884]
[1731362937964,0.1,219.08,219.0,43.776884]
[1731362938153,21.3983,219.11,219.0,43.776884]
[1731362938354,0.2,219.1,219.0,43.776884]
[1731362939571,0.1,219.08,219.0,43.776884]
[1731362942149,3.35194444,219.1,219.02,43.776884]
[1731362942351,3.35194444,219.09,219.02,43.776884]
[1731362942554,21.3983,219.11,219.02,43.776884]
[1731362942746,3.35510978,219.1,219.02,43.776884]
[1731362942947,3.35510978,219.09,219.02,43.776884]
[1731362943260,21.3983,219.11,219.04,43.776884]
[1731362943460,22.3129,219.17,219.06,43.776884]
[1731362943663,3.35424824,219.16,219.08,23.776884]
[1731362943975,4.59494,219.16,219.06,20.0]
[1731362944178,0.1,219.12,219.02,23.776884]
[1731362944355,0.1,219.07,218.97,21.8702846]
[1731362944889,0.1,219.09,218.97,21.8702846]
[1731362945086,3.3537915,219.08,218.97,21.8702846]
[1731362945259,3.3537915,219.07,218.99,21.8702846]
[1731362945461,0.1,219.11,218.99,21.8702846]
[1731362945657,3.35339889,219.1,219.0,20.0]
[1731362945863,3.35339889,219.09,219.02,20.0]
[1731362946090,3.35339889,219.08,219.02,20.0]
[1731362946265,3.35339889,219.1,219.03,23.776884]
[1731362946469,3.35339889,219.09,219.04,20.0]
[1731362946682,3.35339889,219.08,219.06,20.0]
[1731362946885,0.1,219.16,219.09,23.776884]
[1731362947081,3.35371521,219.15,219.09,23.776884]
[1731362947278,3.35371521,219.14,219.11,23.776884]
[1731362947488,3.35516529,219.13,219.11,23.776884]
[1731362947671,3.35516529,219.12,219.09,20.0]
[1731362947866,3.35516529,219.11,219.09,20.0]
[1731362948163,22.3129,219.17,219.1,23.776884]
[1731362948370,6.6497,219.22,219.16,21.8702846]
[1731362948573,3.35513699,219.21,219.2,20.0]
[1731362948772,3.35513699,219.21,219.2,43.776884]
[1731362948980,3.35513699,219.21,219.17,21.8702846]
[1731362949177,3.35513699,219.2,219.18,43.776884]
[1731362949483,15.0401,219.24,219.18,43.776884]
[1731362949687,3.35280283,219.23,219.18,43.776884]
[1731362949892,3.35280283,219.22,219.18,43.776884]
[1731362950191,15.0401,219.24,219.18,43.776884]
[1731362950579,3.35119189,219.23,219.18,43.776884]
[1731362950783,3.35119189,219.22,219.18,43.776884]
[1731362950993,15.0401,219.24,219.18,43.776884]
[1731362951194,3.35049403,219.23,219.18,43.776884]
[1731362951486,15.0401,219.24,219.18,43.776884]
[1731362951697,3.34901653,219.23,219.18,43.776884]
[1731362951892,3.34900484,219.22,219.18,43.776884]
[1731362952197,0.1,219.23,219.15,21.8702846]